Cogmind - Beta 15 @@@ ROGUE MODE // 2025.06.17 @ 18:28:42 Player: BlobtheGreat Result: Destroyed by as-41828 with Assembled Heavy Rifle Performance ------------- Evolutions (0) 0 Regions Visited (2) 400 Robots Destroyed (28) 140 Value Destroyed (458) 458 Prototype IDs (0) 0 Alien Tech Used (0) 0 Bonus (0) 0 TOTAL SCORE: 998 Bonus ------- None Cogmind --------- Core Integrity 0/250 Matter 115/300 Energy 100/100 System Corruption 2% Temperature Cool (0) Movement Treading (240) Ox1 Location -10/Mines Parts ------- > --- POWER (1) -------- (None) > --- PROPULSION (2) --- Light Treads Light Treads > --- UTILITY (2) ------ High-capacity Storage Unit Weapon Shielding > --- WEAPON (2) ------- Improved Light Cannon Grenade Launcher > --- INVENTORY (20) --- Ion Engine Ion Engine Cooling System Large Storage Unit Improved Light Cannon Improved Light Cannon Improved Light Cannon Grenade Launcher Grenade Launcher Grenade Launcher Welding Torch Maul Maul Maul Peak State ------------ > --- POWER ------------ Ion Engine > --- PROPULSION ------- Light Treads Light Treads > --- UTILITY ---------- Cooling System Small Storage Unit > --- WEAPON ----------- Improved Light Cannon Improved Light Cannon > --- INVENTORY -------- Ion Engine Light Ion Engine Light Treads Improved Light Cannon Improved Light Cannon Grenade Launcher Grenade Launcher Maul [Rating: 11] Favorites ----------- Power Ion Engine Engine Ion Engine Propulsion Light Treads Treads Light Treads Utility Small Storage Unit Device Cooling System Storage Small Storage Unit Protection Weapon Shielding Weapon Improved Light Cannon Energy Gun EM Pulse Gun Ballistic Cannon Improved Light Cannon Launcher Grenade Launcher Special Weapon Welding Torch Impact Weapon Maul Build | -11 -10 -10 ------- Run | Yrd Mat Min Slots Evolved . | . . . Power . | . . . Propulsion . | . . . Utility . | . . . Weapon . | . . . Parts Attached 22 | 8 11 3 Power 2 | 1 1 . Engine 2 | 1 1 . Core . | . . . Reactor . | . . . Propulsion 4 | 2 . 2 Treads 4 | 2 . 2 Leg . | . . . Wheel . | . . . Hover . | . . . Flight . | . . . Utility 6 | 2 4 . Device 2 | 1 1 . Storage 3 | 1 2 . Processor . | . . . Hackware . | . . . Protection 1 | . 1 . Artifact . | . . . Weapon 10 | 3 6 1 Energy Gun 3 | 3 . . Energy Cannon . | . . . Ballistic Gun . | . . . Ballistic Cannon 3 | . 3 . Launcher 2 | . 1 1 Special Weapon 1 | . 1 . Impact Weapon 1 | . 1 . Slashing Weapon . | . . . Piercing Weapon . | . . . Special Melee Weapon . | . . . Unidentified Prototypes . | . . . Parts Lost 5 | . 2 3 Power 2 | . 1 1 Propulsion 2 | . . 2 Utility 1 | . 1 . Weapon . | . . . Highest Loss Streak 2 | . 2 2 To Critical Strikes 1 | . . 1 Average Backups 9 | 4 9 14 Power 1 | 1 2 2 Propulsion 1 | 2 1 . Utility . | . . 2 Weapon 4 | . 5 9 Tool/Special . | . . . Unused Backups 12 | . 5 7 Power 4 | . 2 2 Propulsion 3 | . 3 . Utility . | . . . Weapon 5 | . . 5 Tool/Special . | . . . Average Slot Usage (%) 98 | . 98 94 Engine 13 | . 13 10 Treads 27 | . 28 26 Device 8 | . 9 . Storage 14 | . 14 14 Protection 4 | . 3 14 Energy Gun 6 | . 7 . Ballistic Cannon 16 | . 16 16 Launcher 1 | . . 11 Impact Weapon 2 | . 3 . Peak Build Rating 11 | 7 11 11 Average Rating 9 | 5 9 9 On Entrance 6 | . 7 11 Naked Turns . | . . . Heaviest Build 54 | 12 54 54 Greatest Support 40 | 40 40 40 Greatest Overweight (x) 2 | . 1 2 Average Overweight (x) . | . . 1 Largest Inventory Capacity 20 | 8 20 20 Average Capacity 13 | 7 14 20 Most Carried 16 | 6 16 16 Average Carried 9 | 4 9 14 Final Capacity 20 | 8 20 20 Final Carried 16 | 6 16 14 Class Distribution -------------------- 100% | Mutant Dominant Class ---------------- Mutant | -10/Materials Mutant | -10/Mines Resources | -11 -10 -10 ----------- Run | Yrd Mat Min Matter Collected 662 | 280 382 . Remotely . | . . . Salvage Created 935 | 202 711 22 Parts 48 | 16 32 . Haulers Intercepted 2 | . 2 . Recyclers Shooed . | . . . Parts Field Recycled . | . . . Retrieved Matter . | . . . Parts Self-Destructed . | . . . Prevented . | . . . Kills | -11 -10 -10 ------- Run | Yrd Mat Min Combat Hostiles Destroyed 23 | . 13 10 Guns 3 | . 3 . Cannons 6 | . 6 . AOE 14 | . 4 10 Classes Destroyed 9 | 2 6 1 Tunneler 5 | 5 . . Hauler 2 | . 2 . Recycler 4 | 1 3 . Mechanic 1 | . 1 . Operator 1 | . 1 . Watcher 2 | . 2 . Swarmer 6 | . 6 . Grunt 7 | . 7 . Assembled 10 | . . 10 Best Kill Streak 9 | 2 4 9 Combat Bots Only 9 | . 3 9 Max Kills in Single Turn 2 | 1 2 2 Gunslinging . | . . . Exploded 2 | . 1 2 Melee . | . . . Uniques/NPCs Destroyed . | . . . Combat | -11 -10 -10 -------- Run | Yrd Mat Min Hostile Shots Fired 103 | . 47 56 Missed 33 | . 17 16 Hits 70 | . 30 40 Projectile 70 | . 30 40 Critical Strikes 1 | . . 1 Damage Taken 1270 | . 598 672 Core 257 | . 95 162 Absorbed by Shields . | . . . Redirected to Shielding 40 | . . 40 Core Remaining (%) 100 | 100 . . Volleys Fired 85 | 28 40 17 Largest 2 | 2 2 1 Hottest 80 | 80 80 30 Shots Fired 124 | 32 75 17 Gun 64 | 32 32 . Cannon 39 | . 39 . Launcher 21 | . 4 17 Special . | . . . Kinetic 39 | . 39 . Thermal 24 | 24 . . Explosive 21 | . 4 17 Electromagnetic 40 | 8 32 . Robot Hit Streak 6 | 5 6 1 Robot Miss Streak 2 | 2 2 1 Penetration Max . | . . . Secondary Targets . | . . . Shots Hit Robots 61 | 19 41 1 Core Hits 48 | 6 23 19 Critical Kills 1 | . 1 . Critical Parts Destroyed 1 | . 1 . Critical Strikes 3 | . 3 . Blast 1 | . 1 . Smash 2 | . 2 . Melee Attacks 7 | . 7 . Impact 7 | . 7 . Slashing . | . . . Piercing . | . . . Sneak Attacks 3 | . 3 . Combat Hostiles . | . . . Follow-up Attacks . | . . . Damage Inflicted 2152 | 217 1396 539 Guns 486 | 217 269 . Cannons 415 | . 415 . Explosions 936 | . 397 539 Melee 305 | . 305 . Ramming 10 | . 10 . Kinetic 415 | . 415 . Thermal 183 | 149 34 . Explosive 902 | . 363 539 Electromagnetic 337 | 68 269 . Impact 305 | . 305 . Slashing . | . . . Piercing . | . . . Highest Corruption 2 | . 2 2 Average Corruption 1 | . 1 2 Corruption Purged . | . . . Corruption Blocked . | . . . Effects 17 | . 15 2 Message Errors 6 | . 5 1 Matter Fused 1 | . 1 . Heat Flow Errors 3 | . 3 . Energy Discharges 4 | . 4 . Data Loss (minor) 3 | . 2 1 Overload Shots . | . . . Overflow Damage 205 | . 200 5 Projectiles 12 | . 12 . Explosions 5 | . . 5 Melee 188 | . 188 . Knockbacks 6 | . 6 . Impact 2 | . 2 . Kinetic 4 | . 4 . Secondary . | . . . Self-Inflicted Damage 104 | . 48 56 Shots 5 | . 2 3 Rammed 3 | . 3 . Targets Rammed 4 | . 4 . Kicked . | . . . Crushed 1 | . 1 . Highest Temperature 240 | 54 240 . Average Temperature 73 | 25 80 . Received Heat Transfer 120 | . 120 . Siege Activations . | . . . Martial Activations . | . . . Shielding Activations . | . . . Robots Disrupted . | . . . Combat Hostiles . | . . . Robots Corrupted 3 | . 3 . Combat Hostiles . | . . . Parts Fried 4 | . 4 . Impact Corruptions 5 | . 5 . Robots Melted . | . . . Combat Hostiles . | . . . Parts Melted . | . . . Heat Transferred 400 | 350 50 . Parts Sabotaged . | . . . Parts Stolen . | . . . Parts Stripped . | . . . Power Chain Reactions 1 | . 1 . Alert | -11 -10 -10 ------- Run | Yrd Mat Min Maximum Alert Level . | . . . Low Security (%) 100 | 100 100 100 Level 1 . | . . . Level 2 . | . . . Level 3 . | . . . Level 4 . | . . . Level 5 . | . . . High Security . | . . . Max Security . | . . . Peak Influence 111 | 5 111 22 Initial 22 | . 3 22 Average 33 | . 41 9 Influence Increases 567 | 30 483 54 Destroy 0b10 Robot/C 260 | . 260 . Destroy 0b10 Robot/NC 75 | 30 45 . Destroy Leader 68 | . 68 . Successful Hack 17 | . 17 . Disable Machine 15 | . 15 . Destroy Structure 87 | . 33 54 Partial Spotted 15 | . 15 . Lose Combat Pursuer 30 | . 30 . Influence Decreases 556 | 25 429 102 Entered New Map 39 | . 2 37 Time Decay 490 | 25 413 52 Lost Part 27 | . 14 13 Squads Dispatched 2 | . 2 . Investigation . | . . . Extermination . | . . . Reinforcement 2 | . 2 . Assault . | . . . Garrison . | . . . Intercept . | . . . Searches Triggered . | . . . Construction Impeded . | . . . Haulers Reinforced . | . . . Active Scanning Responses . | . . . Cargo Convoy Interrupts . | . . . Stealth | -11 -10 -10 --------- Run | Yrd Mat Min Distress Signals . | . . . Communications Jammed . | . . . Distress Signals . | . . . Times Spotted 34 | . 21 13 Peak Tracking Total 7 | . 4 7 Tactical Retreats 2 | . 1 1 Traps | -11 -10 -10 ------- Run | Yrd Mat Min Traps Triggered 4 | . 4 . Indirectly . | . . . Trap Hack Attempts . | . . . Triggered . | . . . Disarmed . | . . . Reprogrammed . | . . . Reused . | . . . Traps Extracted . | . . . Installed . | . . . Triggered . | . . . Machines | -11 -10 -10 ---------- Run | Yrd Mat Min Machines Disabled 1 | . 1 . Max in Single Turn 1 | . 1 . Machines Repaired . | . . . Machines Dismantled . | . . . Machines Sabotaged . | . . . Overloaded Fab Kills . | . . . Hacking | -11 -10 -10 --------- Run | Yrd Mat Min Machines Accessed 5 | . 5 . Terminals 5 | . 5 . Fabricators . | . . . Repair Stations . | . . . Recycling Units . | . . . Scanalyzers . | . . . Garrison Access . | . . . Total Hacks 15 | . 15 . Successful 8 | . 8 . Failed 7 | . 7 . Catastrophic 1 | . 1 . Database Lockouts . | . . . Manual 7 | . 7 . Terminals 15 | . 15 . Fabricators . | . . . Repair Stations . | . . . Recycling Units . | . . . Scanalyzers . | . . . Garrison Access . | . . . Terminal Hacks 7 | . 7 . Robot Analysis 3 | . 3 . Alert Level 1 | . 1 . Locate Traps 1 | . 1 . Transport Status 1 | . 1 . Zone Layout 1 | . 1 . Fabricator Hacks . | . . . Repair Station Hacks . | . . . Recycling Unit Hacks . | . . . Scanalyzer . | . . . Garrison Access Hacks . | . . . Unauthorized Hacks 1 | . 1 . Terminals 1 | . 1 . Botnet 1 | . 1 . Fabricators . | . . . Repair Stations . | . . . Recycling Units . | . . . Scanalyzers . | . . . Garrison Access . | . . . Data Cores Recovered . | . . . Used . | . . . Hacking Detections 4 | . 4 . Full Trace Events . | . . . Feedback Events . | . . . Feedback Blocked . | . . . Robot Schematics Acquired . | . . . Robots Built . | . . . Authchips . | . . . Time . | . . . Total Robot Build Rating . | . . . Part Schematics Acquired . | . . . Parts Built . | . . . Authchips . | . . . Time . | . . . Total Part Build Rating . | . . . Parts Repaired . | . . . Time . | . . . Parts Recycled . | . . . Recycled Matter . | . . . Retrieved Matter . | . . . Retrieved Components . | . . . Parts Scanalyzed . | . . . Part Schematics Acquired . | . . . Parts Damaged . | . . . Bothacking | -11 -10 -10 ------------ Run | Yrd Mat Min Used RIF Installer . | . . . Robots Hacked . | . . . Non-combat . | . . . Combat . | . . . Robot Hacks Applied . | . . . Relay Couplers Released . | . . . Fabnet Peak Effective % . | . . . Robots Rewired . | . . . Allies Hacked . | . . . Hacks Repelled . | . . . Allies | -11 -10 -10 -------- Run | Yrd Mat Min Total Allies . | . . . Largest Group . | . . . Highest-Rated Group . | . . . Highest-Rated Ally . | . . . Total Orders . | . . . Ally Attacks . | . . . Total Damage . | . . . Kills . | . . . Allies Corrupted . | . . . Allies Melted . | . . . Intel | -11 -10 -10 ------- Run | Yrd Mat Min Active Infowar (turns) 289 | 3 286 . Seismic 289 | 3 286 . Robot Analysis Total 3 | . 3 . Derelict Logs Recovered . | . . . Drone Launches . | . . . Drone Recoveries . | . . . Exploration | -11 -10 -10 ------------- Run | Yrd Mat Min Turns Passed 1822 | 237 1419 166 Spaces Moved 799 | 101 645 53 Core 3 | 3 . . Treads 796 | 98 645 53 Legs . | . . . Wheels . | . . . Hover . | . . . Flight . | . . . Fastest Speed 50 | 50 160 240 Average Speed 189 | 156 189 244 Slowest Speed 320 | 160 240 320 Overloaded Moves . | . . . Propulsion Burnouts . | . . . Robots Hopped . | . . . Potential Cave-ins . | . . . Cave-ins Triggered . | . . . Exploration Rate (%) 35 | 6 83 17 Regions Visited 2 Branch Regions 1 Pre-discovered Areas 1 | . . 1 Known Exits Taken . | . . . Unknown Exits Taken 2 | 1 1 . Scrap Searched . | . . . Spaces Dug 11 | . 1 10 Terrain Destroyed 95 | . 34 61 Melee 1 | . 1 . Projectile 6 | . 6 . AOE 88 | . 27 61 Terrain Rammed . | . . . Walls Destroyed . | . . . Machines Disabled . | . . . Actions | -11 -10 -10 --------- Run | Yrd Mat Min Total 964 | 144 747 73 Wait 10 | . 10 . Move 797 | 100 644 53 Hop . | . . . Pick Up 23 | 7 16 . Fast Attach 9 | 6 3 . Attach 4 | 1 1 2 Detach . | . . . Swap 16 | 2 13 1 Drop 9 | . 9 . Fire 85 | 28 40 17 Melee 7 | . 7 . Ram . | . . . Kick . | . . . Crush 4 | . 4 . Escape Stasis . | . . . Rewire . | . . . Trap . | . . . Miscellaneous . | . . . Route ------- -11/Scrapyard -10/Materials (discovered 5 exits: [*Mat x2] / [*Min x2] / [*Sub]) -10/Mines History --------- Turn | Location | Event 3 | -11/Scrapyard | Discovered new exit (range 16) 238 | -11/Scrapyard | Entered Materials 331 | -10/Materials | Build established: Mutant 333 | -10/Materials | Discovered new exit (range 16) 520 | -10/Materials | Discovered new exit (range 3) 733 | -10/Materials | Discovered new exit (range 13) 1087 | -10/Materials | Discovered new exit (range 11) 1138 | -10/Materials | Derelicts attacked the area 1467 | -10/Materials | Discovered new exit (range 8) 1657 | -10/Materials | Entered Mines 1658 | -10/Mines | Learned location of Storage (-9) 1658 | -10/Mines | Assembled infested the area 1726 | -10/Mines | Core integrity fell below 50% 1773 | -10/Mines | Core integrity fell below 20% 1788 | -10/Mines | Destroyed 9 combat bots 1823 | -10/Mines | Destroyed by as-41828 with Assembled Heavy Rifle Last Messages --------------- 01707_ as-43631 destroyed. 01708_ Lgt. Treads destroyed. 01709_ Destroyed Asb. F-torch. 01711_ as-67878 destroyed. 01713_ ZQ 7QWOIOEMWEENF9SDR#K>A 01724_ Critical hit (Destroy). 01724_ Lgt. Treads destroyed. 01729_ as-47977 destroyed. 01729_ as-60757 destroyed. 01747_ as-84508 destroyed. 01747_ as-20373 destroyed. 01751_ as-25423 destroyed. 01759_ The unstable cave ceiling collapses. 01765_ as-31607 destroyed. 01767_ as-94073 destroyed. 01772_ Ion Engine destroyed. 01775_ System corrupted: Component data lost. 01776_ T-07 Excavator destroyed. 01780_ The unstable cave ceiling collapses. 01804_ as-22073 destroyed. Map ----- +----------------------------------------------------+ | ?????????????????????????????????????? | | ?????????????????????????????????????? | | ?????????????????????????????????????? | | ?????????????????????????????????????? | | ?????????????????????????????????????? | | ?????????????????????????????????????? | | ?????????????????????????????????????? | | ?????????????????????????????????????? | | ?????????????????????????????????????? | | ?????????????????????????????????????? | | ???###???????????????????????????????? | | ??## #??????????????????????????????? | | ?## ??????????????????????????????? | | ?# ##????????????????????????????? | | ?# #????????????????????????????? | | ??# ##???????????????????????????? | | ???# #?????????$?????????????????? | | ????# #???????## ?????????????????? | | ????# #???????*%!?????????????????? | | ????# #???????=! ?????????????????? | | ????## ##???????*%#?????????????????? | | ?????# #???##### $#?????????????????? | | ?????# ##### # #?????????????????? | | ?????# ## #?????????????????? | | ?????# #?????????????????? | | ?????# @ #?????????????????? | | ?????#### #?????????????????? | | ????????##### # #?????????????????? | | ????????????# ######????????????? | | ?????????#### a ##?##????????? | | ?????????# # # ##???????? | | ?????????# ###?????? | | ????????## ????? | | ????????# ????? | | ????????# ## ##?????? | | ????????###?# < | #??????? | | ????????????# !% ##??????? | | ???????# = #####???????? | | ???????## ####???????????? | | ????????## # #??????????????? | | ?????????## #??????????????? | | ??????????## #??????????????? | | ???????????## ??????????????? | | ????????????# ??????????????? | | ????????????## ?????????????? | | ?????????????# % ??????????????? | | ?????????????# ##?????????????? | | ?????????????## #??????????????? | | ??????????????# %% #??????????????? | | ??????????????# # =!###??????????????? | +----------------------------------------------------+ Best States ------------- Heat Dissipation 47 Energy Generation 10 Energy Capacity 250 Matter Stores 300 Matter Capacity 300 Sight Range 16 Terrain Scan Density 10 Weapon Shielding 33 Evasion (%) 40 Recoil Reduction 2 Item Schematics ----------------- None Robot Schematics ------------------ None Fabricated ------------ Nothing Repaired ---------- Nothing Alien Tech Used ----------------- None Achievements -------------- None Challenges ------------ None Game ------ Seed ProtonHypervelocityPod Manual? 0 Play Time 00:15:26 Cumulative 27.5 hours Start 2025.06.17 @ 18:15:05 End 2025.06.17 @ 18:28:42 Sessions 1 Manual Loads 0 Difficulty Rogue Special Mode None Game No. 29 Rogue 29 Adventurer 0 Explorer 0 Win Type - Total 0 Types 0/0/0/0/0/0/0/0/0/0 Lore% 23 Gallery% 25 Achievement% 29 Wizard Run 0 Options --------- Layout 1 ASCII 0 Keyboard 1 Movement Arrows Keybinds 0 Fullscreen 1 Font 24/Smallcaps Map View 50x40 Zoom Use 0% Tactical HUD 1 Map Filters NONE Filters NONE Steam 1 RUN: e466149d-5840-4d14-a968-c8a29a7ec3a6